Cogmind - Beta 16 @@@ ROGUE MODE // 2026.01.19 @ 22:15:17 Player: ThE chow Result: Destroyed by 7R-MNS with Wave Gun Performance ------------- Evolutions (2) 1000 Regions Visited (4) 800 Robots Destroyed (109) 545 Value Destroyed (2653) 2653 Prototype IDs (1) 20 Alien Tech Used (0) 0 Bonus (113) 113 TOTAL SCORE: 5131 Bonus ------- High Alert Combat Kills 116 Follower Combat Kills 27 Friendly Fire -30 Cogmind --------- Core Integrity 0/550 Matter 297/300 Energy 100/100 System Corruption 8% Temperature Cool (27) Movement Core (700) Ox13 Location -8/Materials Parts ------- > --- POWER (1) -------- (None) > --- PROPULSION (4) --- (None) > --- UTILITY (3) ------ High-capacity Storage Unit > --- WEAPON (3) ------- (None) > --- INVENTORY (20) --- Aluminum Leg Carbon-fiber Leg Huge Storage Unit Advanced Visual Processing Unit Medium Armor Plating Medium Armor Plating Drone Bay (0/2) Drone Bay (2/2) Heavy Particle Gun Beamcaster Autogun High-powered Shotgun Flak Cannon Flak Cannon Flak Cannon EMP Blaster Rocket Launcher Peak State ------------ > --- POWER ------------ Light Ion Engine > --- PROPULSION ------- Aluminum Leg Aluminum Leg Aluminum Leg Carbon-fiber Leg > --- UTILITY ---------- High-capacity Storage Unit Drone Bay Drone Bay > --- WEAPON ----------- Heavy Particle Gun High-powered Shotgun Flak Cannon > --- INVENTORY -------- Aluminum Leg Carbon-fiber Leg Huge Storage Unit Advanced Visual Processing Unit Medium Armor Plating Medium Armor Plating Medium Armor Plating Drone Bay Heavy Particle Gun Beamcaster Beamcaster Autogun High-powered Shotgun Flak Cannon Flak Cannon Flak Cannon EMP Blaster Rocket Launcher [Rating: 33] Favorites ----------- Power Light Ion Engine Engine Light Ion Engine Power Core Light Nuclear Core Propulsion Aluminum Leg Treads Improved Treads Leg Aluminum Leg Utility Medium Armor Plating Device Remote Shield Storage High-capacity Storage Unit Protection Medium Armor Plating Weapon Rocket Launcher Energy Gun Heavy Particle Gun Ballistic Gun High-powered Shotgun Ballistic Cannon Flak Cannon Launcher Rocket Launcher Build | -11 -10 -9 -9 -8 ------- Run | Yrd Mat Mat Sto Mat Slots Evolved 4 | . . 2 . 2 Power . | . . . . . Propulsion 2 | . . . . 2 Utility 1 | . . 1 . . Weapon 1 | . . 1 . . Parts Attached 60 | 7 6 15 25 7 Power 7 | 2 . 2 3 . Engine 6 | 2 . 1 3 . Core 1 | . . 1 . . Reactor . | . . . . . Propulsion 13 | 2 . 3 6 2 Treads 6 | . . 2 4 . Leg 7 | 2 . 1 2 2 Wheel . | . . . . . Hover . | . . . . . Flight . | . . . . . Utility 19 | 1 3 4 7 4 Device 3 | . . . 1 2 Storage 4 | 1 1 1 . 1 Processor . | . . . . . Hackware . | . . . . . Protection 12 | . 2 3 6 1 Artifact . | . . . . . Weapon 21 | 2 3 6 9 1 Energy Gun 8 | 2 1 1 3 1 Energy Cannon . | . . . . . Ballistic Gun 4 | . . 2 2 . Ballistic Cannon 4 | . 1 2 1 . Launcher 5 | . 1 1 3 . Special Weapon . | . . . . . Impact Weapon . | . . . . . Slashing Weapon . | . . . . . Piercing Weapon . | . . . . . Special Melee Weapon . | . . . . . Unidentified Prototypes 1 | . . . 1 . Corrupted Parts 4 | . . . 2 2 System Corruption 17 | . . . 9 8 Parts Lost 28 | . . 6 9 13 Power 5 | . . 2 2 1 Propulsion 5 | . . . 1 4 Utility 10 | . . 2 4 4 Weapon 8 | . . 2 2 4 Highest Loss Streak 13 | . . 3 2 13 To Critical Strikes . | . . . . . Average Backups 17 | 1 12 15 18 19 Power . | . 1 . . . Propulsion 2 | . . 2 3 2 Utility 5 | . 3 3 5 7 Weapon 9 | . 8 9 9 9 Tool/Special . | . . . . . Unused Backups 27 | . 1 9 5 12 Power . | . . . . . Propulsion 7 | . . 2 2 3 Utility 7 | . 1 . 2 4 Weapon 13 | . . 7 1 5 Tool/Special . | . . . . . Average Slot Usage (%) 96 | . 98 95 98 89 Engine 8 | . 14 4 10 7 Core 1 | . . 4 . . Treads 10 | . . 4 15 . Leg 13 | . 28 16 6 32 Device 2 | . . . 2 7 Storage 12 | . 21 11 11 9 Protection 17 | . 5 20 18 7 Energy Gun 6 | . 4 8 6 5 Ballistic Gun 9 | . . 7 12 5 Ballistic Cannon 5 | . 9 5 4 7 Launcher 9 | . 12 10 9 4 Peak Build Rating 33 | 6 11 20 26 33 Average Rating 19 | 4 10 15 23 27 On Entrance 12 | . 6 11 20 26 Avg Prop Armor Cover (%) 4 | . . 5 5 3 Naked Turns . | . . . . . Heaviest Build 73 | 14 38 60 73 68 Greatest Support 46 | 20 20 46 46 45 Greatest Overweight (x) 4 | . 1 3 4 2 Average Overweight (x) 1 | . . 1 1 1 Largest Inventory Capacity 25 | 8 15 20 20 25 Average Capacity 18 | 7 14 16 20 20 Most Carried 20 | 5 15 20 20 20 Average Carried 17 | 1 13 15 18 19 Final Capacity 20 | 8 15 20 20 20 Final Carried 20 | 2 15 20 20 17 Class Distribution -------------------- 57% | Bomber 19% | Scavenger-Bomber 17% | Mutant 5% | Tank Dominant Class ---------------- Mutant | -10/Materials Bomber | -9/Materials Bomber | -9/Storage Scavenger-Bomber | -8/Materials Resources | -11 -10 -9 -9 -8 ----------- Run | Yrd Mat Mat Sto Mat Matter Collected 2676 | 263 205 672 1413 123 Remotely . | . . . . . Salvage Created 2678 | . 272 761 1554 91 Parts 203 | . 28 60 106 9 Haulers Intercepted 2 | . 1 . 1 . Recyclers Shooed 1 | . . . 1 . Parts Field Recycled . | . . . . . Retrieved Matter . | . . . . . Parts Self-Destructed . | . . . . . Prevented . | . . . . . Parts Restored . | . . . . . Kills | -11 -10 -9 -9 -8 ------- Run | Yrd Mat Mat Sto Mat Combat Hostiles Destroyed 73 | . 8 21 40 4 Guns 33 | . . 2 31 . Cannons 14 | . 4 6 3 1 AOE 26 | . 4 13 6 3 Classes Destroyed 13 | . 6 4 3 . Worker 7 | . . 4 3 . Builder 7 | . 4 2 1 . Hauler 2 | . 1 . 1 . Recycler 7 | . 1 3 3 . Mechanic 2 | . . . 2 . Operator 2 | . . 1 1 . Watcher 9 | . 2 4 2 1 Swarmer 22 | . 3 10 6 3 Grunt 33 | . 5 6 22 . Brawler 3 | . . . 3 . Duelist 2 | . . 1 1 . Protector 1 | . . . 1 . Sentry 12 | . . 4 7 1 Best Kill Streak 11 | . 6 6 11 3 Combat Bots Only 9 | . 2 4 9 3 Max Kills in Single Turn 3 | . 3 3 3 3 Gunslinging . | . . . . . Exploded 3 | . 2 3 1 3 Melee . | . . . . . Uniques/NPCs Destroyed . | . . . . . Combat | -11 -10 -9 -9 -8 -------- Run | Yrd Mat Mat Sto Mat Hostile Shots Fired 353 | . 14 95 168 76 Missed 81 | . 4 36 37 4 Hits 272 | . 10 59 131 72 Melee 13 | . . 7 6 . Projectile 259 | . 10 52 125 72 Critical Strikes 16 | . . 4 5 7 Damage Taken 4520 | . 155 932 1775 1658 Core 764 | . 10 87 96 571 Absorbed by Shields 49 | . . . 23 26 Redirected to Shielding 51 | . . 38 13 . Core Remaining (%) 83 | 100 96 . 54 . Volleys Fired 190 | . 20 53 101 16 Largest 3 | . 2 3 3 3 Hottest 143 | . 89 122 143 125 Shots Fired 409 | . 25 130 225 29 Gun 257 | . 5 67 167 18 Cannon 95 | . 9 41 35 10 Launcher 57 | . 11 22 23 1 Special . | . . . . . Kinetic 223 | . 9 59 140 15 Thermal 129 | . 5 49 62 13 Explosive 54 | . 11 22 20 1 Electromagnetic 3 | . . . 3 . Robot Hit Streak 10 | . 4 10 7 3 Robot Miss Streak 8 | . 2 3 8 8 Penetration Max . | . . . . . Secondary Targets 3 | . . . 3 . Max Gunslinging Chain 1 | . . . 1 . Shots Hit Robots 215 | . 9 50 138 18 Core Hits 180 | . 24 48 97 11 Critical Kills . | . . . . . Critical Parts Destroyed 1 | . . 1 . . Critical Strikes 8 | . 1 6 1 . Burn 4 | . . 3 1 . Destroy 1 | . . 1 . . Blast 3 | . 1 2 . . Melee Attacks . | . . . . . Impact . | . . . . . Slashing . | . . . . . Piercing . | . . . . . Sneak Attacks . | . . . . . Combat Hostiles . | . . . . . Follow-up Attacks . | . . . . . Damage Inflicted 6969 | . 817 2054 3625 473 Guns 2624 | . . 406 2099 119 Cannons 1233 | . 129 495 468 141 Explosions 3097 | . 687 1144 1053 213 Melee . | . . . . . Ramming 15 | . 1 9 5 . Kinetic 2763 | . 129 581 1854 199 Thermal 1193 | . . 320 812 61 Explosive 2802 | . 687 1144 758 213 Electromagnetic 196 | . . . 196 . Impact . | . . . . . Slashing . | . . . . . Piercing . | . . . . . Highest Corruption 14 | . . 2 14 8 Average Corruption 4 | . . 2 5 3 Corruption Purged . | . . . . . Corruption Blocked . | . . . . . Effects 115 | . . 10 95 10 Message Errors 26 | . . 3 20 3 Matter Fused 25 | . . 3 22 . Heat Flow Errors 14 | . . 1 9 4 Energy Discharges 12 | . . 1 11 . Parts Rejected 1 | . . . 1 . Data Loss (minor) 12 | . . . 11 1 Data Loss (major) 6 | . . . 5 1 Misfires 7 | . . . 7 . Alerts 4 | . . 1 3 . Weapon Failures 8 | . . 1 6 1 Overload Shots . | . . . . . Overflow Damage 105 | . 37 49 11 8 Projectiles 11 | . 3 8 . . Explosions 94 | . 34 41 11 8 Melee . | . . . . . Knockbacks 21 | . . 4 14 3 Impact . | . . . . . Kinetic 21 | . . 4 14 3 Secondary . | . . . . . Self-Inflicted Damage 325 | . 55 99 171 . Shots 13 | . 3 3 7 . Rammed . | . . . . . Targets Rammed 3 | . 1 1 1 . Kicked 3 | . 1 1 1 . Crushed . | . . . . . Highest Temperature 525 | . 72 410 525 364 Average Temperature 130 | . 24 93 150 147 Received Heat Transfer 1628 | . 30 267 607 724 Effects 27 | . . 1 25 1 Shutdowns 2 | . . . 2 . Energy Bleed 2 | . . . 2 . Interference 5 | . . . 5 . Matter Decay 2 | . . 1 1 . Short Circuit 5 | . . . 4 1 Damage (minor) 2 | . . . 2 . Damage (major) 9 | . . . 9 . Siege Activations . | . . . . . Martial Activations . | . . . . . Shielding Activations . | . . . . . Robots Disrupted . | . . . . . Combat Hostiles . | . . . . . Robots Corrupted . | . . . . . Combat Hostiles . | . . . . . Parts Fried 1 | . . . 1 . Impact Corruptions . | . . . . . Robots Melted . | . . . . . Combat Hostiles . | . . . . . Parts Melted 6 | . . 2 4 . Heat Transferred 2724 | . . 1036 1596 92 Parts Sabotaged . | . . . . . Parts Stolen . | . . . . . Parts Stripped . | . . . . . Power Chain Reactions 3 | . . . 3 . Alert | -11 -10 -9 -9 -8 ------- Run | Yrd Mat Mat Sto Mat Maximum Alert Level 2 | . 1 1 2 1 Low Security (%) 54 | 100 96 27 54 72 Level 1 23 | . 3 72 3 27 Level 2 22 | . . . 41 . Level 3 . | . . . . . Level 4 . | . . . . . Level 5 . | . . . . . High Security . | . . . . . Max Security . | . . . . . Peak Influence 686 | . 208 342 686 283 Initial 283 | . . 33 93 283 Average 229 | . 95 214 277 156 Influence Increases 2673 | . 373 782 1372 146 Destroy 0b10 Robot/C 1460 | . 160 420 800 80 Destroy 0b10 Robot/NC 185 | . 40 70 70 5 Destroy Leader 332 | . 36 98 176 22 Allied During Kill 3 | . . . 3 . Successful Hack 17 | . 7 2 8 . Disable Machine 270 | . 45 45 180 . Destroy Structure 361 | . 85 147 120 9 Lose Combat Pursuer 45 | . . . 15 30 Influence Decreases 2673 | . 294 638 924 817 Entered New Map 564 | . . 46 130 388 Time Decay 1670 | . 294 532 664 180 Lost Part 249 | . . 60 90 99 Lost Ally 40 | . . . 40 . Purge Threat 150 | . . . . 150 Squads Dispatched 16 | . 1 1 8 6 Investigation 3 | . 1 . 1 1 Extermination . | . . . . . Reinforcement 5 | . . 1 2 2 Assault 2 | . . . 2 . Garrison 6 | . . . 3 3 Intercept . | . . . . . Searches Triggered . | . . . . . Construction Impeded 1 | . . 1 . . Haulers Reinforced . | . . . . . Active Scanning Responses . | . . . . . Cargo Convoy Interrupts . | . . . . . Stealth | -11 -10 -9 -9 -8 --------- Run | Yrd Mat Mat Sto Mat Distress Signals 8 | . 2 3 1 2 Communications Jammed . | . . . . . Distress Signals . | . . . . . Times Spotted 104 | . 10 29 52 13 Peak Tracking Total 9 | . 3 8 9 5 Tactical Retreats 3 | . . . 1 2 Traps | -11 -10 -9 -9 -8 ------- Run | Yrd Mat Mat Sto Mat Traps Triggered 4 | . 1 1 1 1 Indirectly . | . . . . . Trap Hack Attempts . | . . . . . Triggered . | . . . . . Disarmed . | . . . . . Reprogrammed . | . . . . . Reused . | . . . . . Traps Extracted . | . . . . . Installed . | . . . . . Triggered . | . . . . . Machines | -11 -10 -9 -9 -8 ---------- Run | Yrd Mat Mat Sto Mat Machines Disabled 18 | . 3 3 12 . Max in Single Turn 2 | . 1 2 2 . Machines Repaired . | . . . . . Machines Dismantled . | . . . . . Machines Sabotaged . | . . . . . Overloaded Fab Kills . | . . . . . Hacking | -11 -10 -9 -9 -8 --------- Run | Yrd Mat Mat Sto Mat Machines Accessed 12 | . 3 1 7 1 Terminals 6 | . 1 . 4 1 Fabricators . | . . . . . Repair Stations 1 | . . . 1 . Recycling Units 4 | . 2 . 2 . Scanalyzers 1 | . . 1 . . Garrison Access . | . . . . . Total Hacks 28 | . 6 5 15 2 Successful 21 | . 6 4 9 2 Failed 6 | . . . 6 . Catastrophic 1 | . . . 1 . Database Lockouts 1 | . . 1 . . Manual 10 | . . . 9 1 Terminals 8 | . 1 . 5 2 Fabricators . | . . . . . Repair Stations 3 | . . . 3 . Recycling Units 12 | . 5 . 7 . Scanalyzers 5 | . . 5 . . Garrison Access . | . . . . . Terminal Hacks 5 | . 1 . 2 2 Open Door 1 | . . . 1 . Branch Access Points 2 | . 1 . 1 . Alert Level 1 | . . . . 1 Unreport Threat 1 | . . . . 1 Fabricator Hacks . | . . . . . Repair Station Hacks 1 | . . . 1 . Scan Component 1 | . . . 1 . Recycling Unit Hacks 11 | . 5 . 6 . Process 3 | . 1 . 2 . Report Inventory 6 | . 3 . 3 . Retrieve Matter 2 | . 1 . 1 . Scanalyzer 4 | . . 4 . . Insert Component 1 | . . 1 . . Analyze 1 | . . 1 . . Retrieve Study 2 | . . 2 . . Garrison Access Hacks . | . . . . . Unauthorized Hacks . | . . . . . Terminals . | . . . . . Fabricators . | . . . . . Repair Stations . | . . . . . Recycling Units . | . . . . . Scanalyzers . | . . . . . Garrison Access . | . . . . . Data Cores Recovered . | . . . . . Used . | . . . . . Hacking Detections 5 | . . 1 3 1 Full Trace Events 2 | . . . 2 . Feedback Events 1 | . . . 1 . Corruption 1 | . . . 1 . Feedback Blocked . | . . . . . Robot Schematics Acquired . | . . . . . Robots Built . | . . . . . Authchips . | . . . . . Time . | . . . . . Total Robot Build Rating . | . . . . . Part Schematics Acquired 1 | . . 1 . . Parts Built . | . . . . . Authchips . | . . . . . Time . | . . . . . Total Part Build Rating . | . . . . . Part Studies Acquired 2 | . . 2 . . Parts Repaired . | . . . . . Time . | . . . . . Parts Recycled . | . . . . . Recycled Matter 276 | . 11 . 265 . Retrieved Matter 47 | . 11 . 36 . Retrieved Components . | . . . . . Parts Scanalyzed 1 | . . 1 . . Part Schematics Acquired 1 | . . 1 . . Parts Damaged . | . . . . . Bothacking | -11 -10 -9 -9 -8 ------------ Run | Yrd Mat Mat Sto Mat Used RIF Installer . | . . . . . Robots Hacked . | . . . . . Non-combat . | . . . . . Combat . | . . . . . Robot Hacks Applied . | . . . . . Relay Couplers Released . | . . . . . Fabnet Peak Effective % . | . . . . . Robots Rewired . | . . . . . Allies Hacked . | . . . . . Hacks Repelled . | . . . . . Allies | -11 -10 -9 -9 -8 -------- Run | Yrd Mat Mat Sto Mat Total Allies 2 | . . . 2 . Largest Group 2 | . . . 2 . Highest-Rated Group 62 | . . . 62 . Highest-Rated Ally 31 | . . . 31 . Total Orders . | . . . . . Ally Attacks 5 | . . . 5 . Total Damage 85 | . . . 85 . Kills 1 | . . . 1 . Allies Corrupted . | . . . . . Allies Melted . | . . . . . Intel | -11 -10 -9 -9 -8 ------- Run | Yrd Mat Mat Sto Mat Active Infowar (turns) . | . . . . . Robot Analysis Total . | . . . . . Derelict Logs Recovered . | . . . . . Drone Launches 4 | . . . . 4 Drone Recoveries 2 | . . . . 2 Exploration | -11 -10 -9 -9 -8 ------------- Run | Yrd Mat Mat Sto Mat Turns Passed 6329 | 68 735 1653 3474 399 Spaces Moved 2473 | 55 348 694 1221 155 Core 18 | 18 . . . . Treads 1007 | . . 146 861 . Legs 1448 | 37 348 548 360 155 Wheels . | . . . . . Hover . | . . . . . Flight . | . . . . . Fastest Speed 50 | 50 120 175 240 178 Average Speed 218 | 97 185 203 247 178 Slowest Speed 400 | 120 190 315 400 252 Overloaded Moves . | . . . . . Propulsion Burnouts . | . . . . . Robots Hopped . | . . . . . Potential Cave-ins . | . . . . . Cave-ins Triggered . | . . . . . Exploration Rate (%) 40 | 4 49 40 91 18 Regions Visited 4 Branch Regions 1 Pre-discovered Areas 1 | . . . 1 . Known Exits Taken . | . . . . . Unknown Exits Taken 4 | 1 1 1 1 . Scrap Searched . | . . . . . Spaces Dug 52 | . . 18 34 . Terrain Destroyed 403 | . 87 164 142 10 Melee . | . . . . . Projectile 2 | . . 2 . . AOE 401 | . 87 162 142 10 Terrain Rammed . | . . . . . Walls Destroyed . | . . . . . Machines Disabled . | . . . . . Actions | -11 -10 -9 -9 -8 --------- Run | Yrd Mat Mat Sto Mat Total 3037 | 69 414 827 1477 250 Wait 166 | . 11 16 76 63 Move 2469 | 54 347 693 1220 155 Hop . | . . . . . Pick Up 90 | 8 21 31 26 4 Fast Attach . | . . . . . Attach 43 | 6 2 11 19 5 Detach 7 | . 1 . 6 . Swap 25 | 1 4 4 11 5 Drop 42 | . 7 18 15 2 Fire 190 | . 20 53 101 16 Melee . | . . . . . Ram . | . . . . . Kick 3 | . 1 1 1 . Crush . | . . . . . Escape Stasis 2 | . . . 2 . Rewire . | . . . . . Trap . | . . . . . Miscellaneous . | . . . . . Route ------- -11/Scrapyard -10/Materials (discovered 4 exits: *Mat / *Min x2 / [*Sub]) -9/Materials (discovered 2 exits: *Mat / *Sto) -9/Storage (discovered 2 exits: *Mat / Rec) -8/Materials History --------- Turn | Location | Event 9 | -11/Scrapyard | Discovered new exit (range 15) 69 | -11/Scrapyard | Entered Materials 318 | -10/Materials | Build established: Mutant 401 | -10/Materials | Discovered new exit (range 16) 475 | -10/Materials | Discovered new exit (range 15) 608 | -10/Materials | Identified exit to Mines 619 | -10/Materials | Discovered new exit (range 7) 804 | -10/Materials | Entered another Materials area 804 | -9/Materials | Evolved 2 slots: Utility x1, Weapon x1 990 | -9/Materials | Lost 3 parts (1p1u1w) 1276 | -9/Materials | Discovered new exit (range 8) 1697 | -9/Materials | Build established: Bomber 1770 | -9/Materials | Central database locked down 1957 | -9/Materials | Discovered new exit (range 16) 2457 | -9/Materials | Entered Storage 3597 | -9/Storage | Identified exit to Recycling 4235 | -9/Storage | Garrison activated, responded to threat 4490 | -9/Storage | Destroyed 8 combat bots 4633 | -9/Storage | Learned location of Armory (-4) 4732 | -9/Storage | Discovered new exit (range 12) 4757 | -9/Storage | Met a pair of Derelict thieves 4871 | -9/Storage | Destroyed 9 combat bots 4990 | -9/Storage | System corruption reached 10% 5354 | -9/Storage | Build established: Scavenger-Bomber 5931 | -9/Storage | Entered Materials 5931 | -8/Materials | Evolved 2 slots: Propulsion x2 6083 | -8/Materials | Garrison activated, responded to threat 6205 | -8/Materials | Met 7R-MNS 6258 | -8/Materials | Attacked by 7R-MNS 6318 | -8/Materials | Core integrity fell below 50% 6328 | -8/Materials | Core integrity fell below 20% 6330 | -8/Materials | Destroyed by 7R-MNS with Wave Gun Last Messages --------------- 06280_ Aluminum Leg+ destroyed. 06280_ Critical hit (Burn: +37). 06281_ Integrated Corrupted Beamcaster (+5). 06281_ Complication: Energy sink damages Corrupted Beamcaster (-12). 06283_ U-05 Engineer builds a Wall. 06287_ Critical hit (Burn: +37). 06287_ Lgt. Ion Engine destroyed. 06288_ U-05 Engineer builds a Door. 06291_ Drone Bay destroyed. 06291_ >> Lost connection to Drone. 06293_ System corrupted: FCS attempts to trigger Beamcaster. 06295_ Carbon-fiber Leg destroyed. 06295_ Med. Armor Plating destroyed. 06298_ Aluminum Leg+ destroyed. 06298_ Beamcaster destroyed. 06298_ Critical hit (Burn: +37). 06302_ Broken Aluminum Leg+ destroyed. 06320_ System corrupted: Heat flow error (+206). Map ----- +----------------------------------------------------+ | ?????????????????????????????????????????????????? | | ?????????????????????????????????????????????????? | | ?????????????????????????????????????????????????? | | ?????????????????????????????????????????????????? | | ?????????????????????????????????????????????????? | | ?????????????????????????????????????????????????? | | ?????????????????????????????????????????????????? | | ?????????????????????????????????????????????????? | | ?????????????????????????????????????????????????? | | ?????????????????????????????????????????????????? | | ?????????????????????????????????????????????????? | | ?????????????????????????????????????????????????? | | ?????????????????????????????????????????????????? | | ?????????????????????#######?????????????????????? | | ?????????????????????# #?????????????????????? | | ?????????????????????# #?????????????????????? | | ?????????????????????# #?????????????????????? | | ?????????????????????# #?????????????????????? | | ?????????????????????# !#?????????????????????? | | ?????????????????????# #?????????????????????? | | ????????????#????????# #?????????????????????? | | ????????????# ???????# #?????????????????????? | | ????????????# ???????# #?????????????????????? | | ????????????# ???????# / #???????##????????????? | | ????????????# ???????# +???? % %%??????????? | | ##??????????# ???????# g@ #?? ?????????????? | | #######+####+#########+#### """=%?????????????? | | % "R [%?????????????? | | % " "*%?????????????? | | % =%/=% %##???????????? | | "############+#########+##### [ % #????????????? | | "##########? ??????????????? """ #????????????? | | "# ! #? ????????????????""" #????????????? | | # """?? ! "?????????????????"???????????????? | | # """""? ?????????????????????????????????? | | + """""# ????????????????????????????????? | | #= """""#""" ]????????????????????????????????? | | # """ #""" ???????????????????????????????? | | # #""" ???????????????????????????????? | | # ! ! #? ??????????????????????????????? | | # ! #???#####??????????????????????????????? | | ##########??????????????????????????????????????? | | #???????????????????????????????????????????????? | | #???????????????????????????????????????????????? | | #???????????????????????????????????????????????? | | #???????????????????????????????????????????????? | | #???????????????????????????????????????????????? | | #???????????????????????????????????????????????? | | #???????????????????????????????????????????????? | | #???????????????????????????????????????????????? | +----------------------------------------------------+ Best States ------------- Heat Dissipation 31 Energy Generation 14 Energy Capacity 265 Matter Stores 300 Matter Capacity 300 Sight Range 16 Terrain Scan Density 10 Armor Coverage 450 Power Shielding 33 Propulsion Shielding 33 Evasion (%) 55 Recoil Reduction 2 Item Schematics ----------------- Aluminum Leg | -9/Materials | Scanalyzed Robot Schematics ------------------ None Fabricated ------------ Nothing Repaired ---------- Nothing Studied --------- Rocket Launcher | -9/Materials | Hacked Aluminum Leg | -9/Materials | Hacked Alien Tech Used ----------------- None Achievements -------------- A Problem For Future Me Everything Is Under Control Let's See Who's Tougher Maybe Next Time I'll Detach My Launcher More Dakka Please System Compromised Troublemaker Well Done Challenges ------------ None Game ------ Seed MappingVortexCutter Manual? 0 Play Time 01:06:18 Cumulative 4.7 hours Start 2026.01.19 @ 21:06:05 End 2026.01.19 @ 22:15:17 Sessions 1 Manual Loads 0 Difficulty Rogue Special Mode None Game No. 4 Rogue 4 Adventurer 0 Explorer 0 Win Type - Total 0 Types 0/0/0/0/0/0/0/0/0/0 Lore% 0 Gallery% 5 Achievement% 7 Wizard Run 0 Options --------- Layout 1 ASCII 0 Keyboard 1 Movement Numpad Keybinds 0 Fullscreen 1 Font 32/Smallcaps Map View 50x35 Zoom Use 0% Tactical HUD 1 Map Filters NONE Filters NONE Steam 1 RUN: 0ca5cecd-6c2b-4272-b48c-ce57c56c1901